fUSD/lending_fUSD_20260109
["ID","MTS","AMOUNT","RATE_DAILY","PERIOD"]
[401148389,1767977443230,-150.0,0.00018,2]
[401148390,1767977443239,-21662.0,0.00018,2]
[401148391,1767977443249,-324844.94005006,0.00018,2]
[401148392,1767977443259,-110324.62253561,0.00018,2]
[401148393,1767977443271,-749872.09386202,0.00018,2]
[401148394,1767977443282,-213301.89934654,0.00018,2]
[401148395,1767977443292,-213109.51261932,0.00018,2]
[401148396,1767977443301,-376490.85114121,0.00018,2]
[401148397,1767977443312,-1521879.71854581,0.00018,2]
[401148398,1767977443383,-452.22751919,0.00018,2]
[401148402,1767977444693,-735.24608787,0.00017385,2]
[401148403,1767977444704,-345.69,0.00017385,2]
[401148404,1767977444716,-1355.06391213,0.00017385,2]
[401148405,1767977444725,-1797.13097611,0.00018,2]
[401148407,1767977444737,-413.25789076,0.00018,2]
[401148408,1767977444748,-5559.86373034,0.00018,2]
[401148409,1767977444759,-447.27153168,0.00018,2]
[401148410,1767977444774,-1012.68459326,0.00018,2]
[401148411,1767977444785,-12667.06262048,0.00018,2]
[401148412,1767977444992,-619.94646908,0.00018,2]
[401148413,1767977445004,-878284.50086243,0.00018,2]
[401148414,1767977445013,-396786.19198216,0.00018,2]
[401148415,1767977445025,-291415.95704002,0.00018,2]
[401148416,1767977445035,-144462.5769411,0.00018,2]
[401148417,1767977445044,-267050.77317429,0.00018,2]
[401148418,1767977445055,-22000.0,0.00018,2]
[401148419,1767977445119,-33.6766638,0.00018,2]
[401148420,1767977445130,-850.96136035,0.00018,2]
[401148427,1767977446148,-291.637896,0.00012999,2]
[401148428,1767977446162,-88699.260204,0.00012999,2]
[401148429,1767977446171,-9408.44770707,0.00018,2]
[401148430,1767977446183,-511.26978909,0.00018,2]
[401148431,1767977446195,-9428.85092983,0.00018,2]
[401148432,1767977446211,-61236.09761277,0.00018,2]
[401148433,1767977446258,-11825.00006151,0.00018,2]
[401148434,1767977446269,-1502.02733383,0.00018,2]
[401148435,1767977446280,-466.81370507,0.00018,2]
[401148436,1767977446291,-3607.02658723,0.00018,2]
[401148437,1767977446366,-6293.97840441,0.00018,2]
[401148438,1767977446378,-23916.42488506,0.00018,2]
[401149825,1767977512133,200.0,0.00012898,2]
[401149836,1767977609196,-149.09119386,0.00012898,2]
[401149837,1767977609223,-499.99999999,0.00012898,2]
[401149838,1767977609248,-300.0,0.00012898,2]
[401149839,1767977609275,-1000000.0,0.00012899,2]
[401149840,1767977609304,-4640.3071,0.00012999,2]
[401149841,1767977609328,-1412.8377,0.00012999,2]
[401149842,1767977609353,-2500.0,0.00012999,2]
[401149871,1767977987888,230.2086536,0.000202,30]
[401149888,1767978127492,-1474.682,0.00012543,2]
[401149889,1767978127518,-190.56748314,0.00012599,2]
[401149890,1767978127544,-300.0,0.00012698,2]
[401149891,1767978127569,-2500.0,0.00012699,2]
[401149892,1767978127594,-173.23414075,0.00012699,2]
[401149893,1767978127619,-2977.40976091,0.00012699,2]
[401149894,1767978127643,-2072.61749821,0.00012699,2]
[401149895,1767978127667,-190.56748314,0.00012699,2]
[401149897,1767978127691,-161.32932321,0.00012699,2]
[401149898,1767978127716,-161.32932321,0.00012699,2]
[401149899,1767978127741,-1200.0,0.00012797,2]
[401149900,1767978127766,-500.0,0.00012798,2]
[401149901,1767978127791,-393.97434736,0.00012798,2]
[401149902,1767978127819,-162.90721759,0.00012798,2]
[401149903,1767978127842,-286.0,0.00012798,2]
[401149904,1767978127866,-33584.3474,0.00012799,2]
[401149905,1767978127892,-1000000.0,0.00012799,2]
[401149906,1767978127917,-1000.0,0.00012799,2]
[401149950,1767978631538,-300.0,0.00012698,2]
[401149951,1767978631548,-1200.0,0.00012698,2]
[401149952,1767978631557,-1000.0,0.00012699,2]
[401149953,1767978631567,-155.20136658,0.00012699,2]
[401149954,1767978631579,-30.42571695,0.00012699,2]
[401149955,1767978631589,-776.6986,0.00012699,2]
[401149956,1767978631599,-236.5897,0.00012699,2]
[401149957,1767978631608,-80277.76684221,0.00012699,2]
[401149958,1767978631619,-1789.67675631,0.00012699,2]
[401149959,1767978631630,-990.97939,0.00012699,2]
[401149960,1767978631642,-2518.78506904,0.00012699,2]
[401149961,1767978631694,-5213.81017421,0.00012699,2]
[401149962,1767978631770,-928.52587715,0.00012699,2]
[401149963,1767978631780,-1345.04317917,0.00012699,2]
[401149964,1767978631796,-315.0,0.00012699,2]
[401149965,1767978631806,-14034.27471683,0.00012699,2]
[401149966,1767978631818,-2000.0,0.00012699,2]
[401149967,1767978631877,-4163.96053727,0.00012699,2]
[401149968,1767978631888,-931.21788998,0.00012699,2]
[401149969,1767978631898,-609.653476,0.00012699,2]
[401149970,1767978637590,-500.0,0.00012698,2]
[401149971,1767978637599,-413.0,0.00012698,2]
[401149972,1767978637612,-87.0,0.00012698,2]
[401149973,1767978637621,-201.60207752,0.00012698,2]
[401149974,1767978637631,-93.61181506,0.00012699,2]
[401149975,1767978637642,-19795.08504826,0.00012699,2]
[401149976,1767978637654,-642.76071279,0.00012699,2]
[401149978,1767978637949,-437.70943335,0.00012699,2]
[401149979,1767978637999,-2982.86738523,0.00012699,2]
[401149981,1767978639575,-3000.0,0.00012699,2]
[401149982,1767978639628,-9155.84279121,0.00012699,2]
[401149983,1767978639639,-3010.12872649,0.00012699,2]
[401149984,1767978639649,-845763.30017944,0.00012699,2]
[401149985,1767978639659,-2924.21134027,0.00013498,2]
[401149986,1767978639669,-161.32932321,0.00013498,2]
[401149987,1767978639678,-1865.35574838,0.00013598,2]
[401149988,1767978639687,-500.0,0.00013698,2]
[401149989,1767978639696,-500.0,0.00013698,2]
[401149990,1767978639705,-500.0,0.00013698,2]
[401149991,1767978639714,-500.0,0.00013698,2]
[401149992,1767978639723,-500.0,0.00013698,2]
[401149993,1767978639732,-500.0,0.00013698,2]
[401149994,1767978639741,-500.0,0.00013698,2]
[401149995,1767978639751,-500.0,0.00013698,2]
[401149996,1767978639759,-500.0,0.00013698,2]
[401149997,1767978639769,-500.0,0.00013698,2]
[401149998,1767978639778,-500.0,0.00013698,2]
[401149999,1767978639787,-549.36394183,0.00013698,2]
[401150001,1767978639796,-500.0,0.00013698,2]
[401150002,1767978639805,-556.51,0.00013698,2]
[401150003,1767978639814,-500.0,0.00013698,2]
[401150004,1767978639823,-597.23624248,0.00013698,2]
[401150005,1767978639832,-315.56,0.00013698,2]
[401150006,1767978639842,-573.37968592,0.00013698,2]
[401150007,1767978639851,-500.0,0.00013698,2]
[401150008,1767978639860,-500.0,0.00013698,2]
[401150009,1767978639869,-500.0,0.00013698,2]
[401150010,1767978639878,-500.0,0.00013698,2]
[401150011,1767978639887,-545.68,0.00013698,2]
[401150012,1767978639896,-500.0,0.00013698,2]
[401150013,1767978639906,-500.0,0.00013698,2]
[401150014,1767978639914,-500.0,0.00013698,2]
[401150015,1767978639923,-568.66331461,0.00013698,2]
[401150016,1767978639932,-500.0,0.00013699,2]
[401150017,1767978639942,-500.0,0.00013699,2]
[401150018,1767978639951,-577.98562035,0.00013699,2]
[401150019,1767978639960,-420.0,0.0001393,2]
[401150020,1767978639969,-250.0,0.00013968,2]
[401150021,1767978639978,-600.0,0.00013968,2]
[401150022,1767978639987,-600.0,0.00013968,2]
[401150023,1767978639996,-600.0,0.00013968,2]
[401150024,1767978640005,-600.0,0.00013968,2]
[401150025,1767978640015,-600.0,0.00013968,2]
[401150026,1767978640025,-1680.0,0.00013968,2]
[401150027,1767978640033,-315.56,0.00013972,2]
[401150028,1767978640043,-2924.21134027,0.00013987,2]
[401150029,1767978640052,-1865.35574833,0.00014076,2]
[401150030,1767978640060,-166.66,0.000142,2]
[401150031,1767978640070,-315.56,0.00014246,2]
[401150032,1767978640079,-2924.21134027,0.00014476,2]
[401150033,1767978640088,-166.66,0.00014499,2]
[401150034,1767978640100,-315.56,0.0001452,2]
[401150035,1767978640109,-1865.35574833,0.00014554,2]
[401150036,1767978640119,-150.0,0.0001461,2]
[401150037,1767978640128,-150.0,0.0001461,2]
[401150038,1767978640139,-500.0,0.0001461,2]
[401150039,1767978640148,-150.0,0.0001461,2]
[401150040,1767978640157,-150.0,0.0001461,2]
[401150041,1767978640167,-8160.96,0.00014623,2]
[401150042,1767978640176,-150.0,0.00014665,2]
[401150043,1767978640186,-150.0,0.00014665,2]
[401150044,1767978640194,-500.0,0.00014665,2]
[401150045,1767978640203,-1000.0,0.00014713,2]
[401150046,1767978640213,-213.50861937,0.0001472,2]
[401150047,1767978640222,-203.90419336,0.0001472,2]
[401150048,1767978640232,-500.0,0.0001472,2]
[401150049,1767978640241,-1869.73,0.0001474,2]
[401150050,1767978640250,-500.0,0.00014751,2]
[401150051,1767978640259,-500.0,0.00014751,2]
[401150052,1767978640269,-150.0,0.00014751,2]
[401150053,1767978640278,-150.0,0.00014751,2]
[401150054,1767978640287,-1555.76,0.00014771,2]
[401150055,1767978640296,-500.0,0.00014774,2]
[401150056,1767978640305,-315.56022595,0.00014794,2]
[401150057,1767978640315,-166.66,0.00014798,2]
[401150058,1767978640325,-500.0,0.00014806,2]
[401150059,1767978640334,-500.0,0.00014806,2]
[401150060,1767978640343,-150.0,0.00014806,2]
[401150061,1767978640353,-159.89186614,0.00014829,2]
[401150062,1767978640362,-500.0,0.00014861,2]
[401150063,1767978640371,-150.0,0.00014861,2]
[401150064,1767978640380,-500.0,0.00014861,2]
[401150065,1767978640389,-200.0,0.00014884,2]
[401150066,1767978640400,-200.0,0.00014896,2]
[401150067,1767978640409,-433.05290144,0.000149,2]
[401150068,1767978640419,-513.03020959,0.00014915,2]
[401150069,1767978640428,-150.0,0.00014915,2]
[401150070,1767978640437,-227.7633421,0.00014915,2]
[401150071,1767978640446,-164.48513271,0.0001497,2]
[401150072,1767978640456,-151.10085397,0.00015025,2]
[401150073,1767978640465,-150.35471955,0.00015025,2]
[401150074,1767978640474,-1865.35574833,0.00015032,2]
[401150075,1767978640483,-166.66,0.00015097,2]
[401150076,1767978640492,-150.0,0.00015159,2]
[401150077,1767978640502,-150.0,0.00015159,2]
[401150078,1767978640512,-500.0,0.00015159,2]
[401150079,1767978640521,-500.0,0.00015159,2]
[401150080,1767978640531,-7726.24,0.00015163,2]
[401150081,1767978640540,-1158.71,0.00015169,2]
[401150082,1767978640549,-150.0,0.00015214,2]
[401150083,1767978640558,-150.0,0.00015214,2]
[401150084,1767978640567,-500.0,0.00015214,2]
[401150085,1767978640576,-540.6958443,0.00015214,2]
[401150086,1767978640586,-213.10958088,0.00015269,2]
[401150087,1767978640595,-205.58205846,0.00015269,2]
[401150088,1767978640605,-490.93864057,0.00015269,2]
[401150089,1767978640614,-587.0,0.00015281,2]
[401150090,1767978640623,-2351.0,0.00015364,2]
[401150091,1767978640632,-166.66,0.00015396,2]
[401150092,1767978640642,-14958.8083883,0.00015401,2]
[401150093,1767978640651,-500.0,0.00015507,2]
[401150094,1767978640660,-1865.35574833,0.0001551,2]
[401150095,1767978640669,-166.66,0.00015695,2]
[401150096,1767978640678,-161.32932321,0.00015699,2]
[401150097,1767978640687,-3721.77618896,0.000159,2]
[401150098,1767978640696,-1865.35574833,0.00015988,2]
[401150099,1767978640706,-275.78204315,0.00016165,2]
[401150100,1767978640716,-2326.0,0.00016166,2]
[401150101,1767978640725,-1852.42,0.000162,2]
[401150102,1767978640734,-150.0,0.000162,2]
[401150103,1767978640743,-500.0,0.00016438,2]
[401150104,1767978640752,-500.0,0.00016438,2]
[401150105,1767978640761,-500.0,0.00016438,2]
[401150106,1767978640771,-500.0,0.00016438,2]
[401150107,1767978640780,-500.0,0.00016438,2]
[401150108,1767978640789,-500.0,0.00016438,2]
[401150109,1767978640798,-427.19060181,0.00016438,2]
[401150110,1767978640807,-380.79895576,0.00016438,2]
[401150111,1767978640815,-11419.85,0.00016438,2]
[401150112,1767978640825,-1865.35574833,0.00016466,2]
[401150113,1767978640834,-1000.0,0.00016552,2]
[401150114,1767978640844,-307.0,0.00016683,2]
[401150115,1767978640853,-152.0,0.00016742,3]
[401150116,1767978640863,-823.0,0.00016763,2]
[401150117,1767978640873,-333.0,0.00016792,2]
[401150118,1767978640883,-333.0,0.00016848,2]
[401150119,1767978640892,-10101.4972,0.00016862,2]
[401150120,1767978640901,-1831.8782,0.00016862,2]
[401150121,1767978640910,-163.89,0.00016868,2]
[401150122,1767978640919,-333.0,0.00016899,2]
[401150123,1767978640928,-3292.0,0.00016901,2]
[401150124,1767978640937,-1865.35574833,0.00016944,2]
[401150125,1767978640946,-229.46594682,0.00016952,2]
[401150126,1767978640955,-34366.31717672,0.00016962,2]
[401150127,1767978640965,-55903.95128726,0.00016962,2]
[401150128,1767978640975,-78953.0640164,0.00016962,2]
[401150129,1767978640984,-102163.5945,0.00016962,2]
[401150130,1767978640994,-227.0,0.00016979,2]
[401150131,1767978641004,-250.0,0.00017,2]
[401150132,1767978641014,-2475.73537682,0.00017,2]
[401150133,1767978641023,-159.10718443,0.00017045,2]
[401150134,1767978641033,-322.6107,0.00017099,2]
[401150135,1767978641043,-553.64373807,0.00017099,2]
[401150136,1767978641053,-303.65393209,0.00017099,2]
[401150137,1767978641063,-642.94,0.00017099,2]
[401150138,1767978641074,-192.0,0.00017103,2]
[401150139,1767978641084,-192.0,0.00017127,2]
[401150140,1767978641096,-267.0,0.00017132,2]
[401150141,1767978641107,-333.0,0.00017141,2]
[401150142,1767978641118,-1201.0,0.00017168,2]
[401150143,1767978641128,-914.0,0.00017168,2]
[401150144,1767978641139,-4819.0,0.00017168,2]
[401150145,1767978641148,-566.0,0.00017168,2]
[401150146,1767978641157,-2436.0,0.00017168,2]
[401150147,1767978641167,-500.0,0.00017174,2]
[401150148,1767978641176,-150.0,0.00017174,2]
[401150149,1767978641185,-248983.2145123,0.00017175,2]
[401150150,1767978641194,-346.0,0.00017313,2]
[401150151,1767978641203,-151.0,0.00017359,2]
[401150152,1767978641214,-150.0,0.00017385,2]
[401150153,1767978641223,-150.0,0.00017385,2]
[401150154,1767978641232,-200.0,0.00017385,2]
[401150155,1767978641241,-200.0,0.00017385,2]
[401150156,1767978641250,-150.0,0.00017385,2]
[401150157,1767978641260,-250.0,0.00017385,2]
[401150158,1767978641269,-171.0,0.00017385,2]
[401150159,1767978641278,-194.254,0.00017385,2]
[401150160,1767978641287,-226.508,0.00017385,2]
[401150161,1767978641296,-211.999,0.00017385,2]
[401150162,1767978641307,-250.0,0.00017385,2]
[401150163,1767978641315,-157.382,0.00017385,2]
[401150164,1767978641326,-243.342,0.00017385,2]
[401150165,1767978641335,-190.931,0.00017385,2]
[401150166,1767978641345,-163.819,0.00017385,2]
[401150167,1767978641354,-211.969,0.00017385,2]
[401150168,1767978641363,-250.0,0.00017385,2]
[401150169,1767978641372,-169.0,0.00017385,2]
[401150170,1767978641381,-229.605,0.00017385,2]
[401150171,1767978641390,-3468.0,0.00017385,2]
[401150172,1767978641399,-614.0,0.00017385,2]
[401150173,1767978641408,-1330.0,0.00017385,2]
[401150174,1767978641418,-1405.0,0.00017385,2]
[401150175,1767978641426,-1266.0,0.00017385,2]
[401150176,1767978641435,-505.0,0.00017385,2]
[401150177,1767978641445,-1826.0,0.000174,2]
[401150178,1767978641455,-1865.35574833,0.00017422,2]
[401150179,1767978641465,-1000.0,0.00017455,2]
[401150180,1767978641475,-151.0,0.00017487,2]
[401150181,1767978641484,-152.0,0.00017515,4]
[401150182,1767978641493,-1148.0,0.00017522,2]
[401150183,1767978641503,-151.0,0.00017615,2]
[401150184,1767978641512,-192.0,0.00017638,2]
[401150185,1767978641521,-2927.90722046,0.0001764,2]
[401150186,1767978641531,-574.12855637,0.00017647,2]
[401150187,1767978641540,-1148.0,0.00017688,2]
[401150188,1767978641549,-151.0,0.00017743,2]
[401150189,1767978641558,-2000.0,0.000178,2]
[401150190,1767978641568,-1000.0,0.000178,2]
[401150191,1767978641577,-200.35779431,0.00017808,2]
[401150192,1767978641586,-198.8360304,0.0001782,2]
[401150193,1767978641595,-192.0,0.0001784,2]
[401150194,1767978641605,-179.26667024,0.00017847,2]
[401150195,1767978641615,-200.0,0.00017855,2]
[401150196,1767978641626,-2000.0,0.00017856,2]
[401150197,1767978641635,-200.0,0.00017856,2]
[401150198,1767978641644,-165.88,0.00017865,2]
[401150199,1767978641654,-1000.0,0.00017867,2]
[401150200,1767978641663,-151.0,0.00017872,2]
[401150201,1767978641672,-500.0,0.00017899,2]
[401150202,1767978641681,-500.0,0.00017899,2]
[401150203,1767978641690,-10000.0,0.000179,2]
[401150204,1767978641699,-9704.82107619,0.000179,3]
[401150205,1767978641709,-565.17771938,0.000179,2]
[401150206,1767978641718,-2180.61295231,0.000179,2]
[401150207,1767978641727,-2180.61295231,0.000179,2]
[401150208,1767978641736,-2180.61295231,0.000179,2]
[401150209,1767978641745,-2180.61295231,0.000179,2]
[401150210,1767978641754,-2180.61295231,0.000179,2]
[401150211,1767978641763,-2180.61295231,0.000179,2]
[401150212,1767978641772,-2180.61295231,0.000179,2]
[401150213,1767978641781,-2180.61295231,0.000179,2]
[401150214,1767978641790,-2180.61295231,0.000179,2]
[401150215,1767978641799,-2180.61295231,0.000179,2]
[401150216,1767978641808,-2180.61295231,0.000179,2]
[401150217,1767978641817,-2180.61295231,0.000179,2]
[401150218,1767978641826,-2180.61295231,0.000179,2]
[401150219,1767978641835,-2180.61295231,0.000179,2]
[401150220,1767978641844,-27199.40669553,0.000179,2]
[401150221,1767978641853,-26500.26122355,0.000179,2]
[401150222,1767978641863,-8996.7949863,0.000179,2]
[401150223,1767978641872,-1865.35574833,0.000179,2]
[401150224,1767978641881,-3205.18305285,0.000179,2]
[401150225,1767978641890,-4834.31017102,0.000179,2]
[401150226,1767978641899,-161.32932321,0.000179,2]
[401150227,1767978641908,-500.0,0.000179,2]
[401150228,1767978641917,-500.0,0.000179,2]
[401150229,1767978641927,-500.0,0.000179,2]
[401150230,1767978641936,-500.0,0.000179,2]
[401150231,1767978641946,-500.0,0.000179,2]
[401150232,1767978641956,-500.0,0.000179,2]
[401150233,1767978641966,-500.0,0.000179,2]
[401150234,1767978641975,-500.0,0.000179,2]
[401150235,1767978641984,-500.0,0.000179,2]
[401150236,1767978641993,-500.0,0.000179,2]
[401150237,1767978642002,-500.0,0.000179,2]
[401150238,1767978642012,-500.0,0.000179,2]
[401150239,1767978642021,-500.0,0.000179,2]
[401150240,1767978642030,-500.0,0.000179,2]
[401150241,1767978642039,-500.0,0.000179,2]
[401150242,1767978642049,-500.0,0.000179,2]
[401150243,1767978642059,-500.0,0.000179,2]
[401150244,1767978642068,-500.0,0.000179,2]
[401150245,1767978642077,-500.0,0.000179,2]
[401150246,1767978642086,-500.0,0.000179,2]
[401150247,1767978642098,-20001.0414604,0.00017923,2]
[401150248,1767978642107,-1148.0,0.00017946,2]
[401150249,1767978642116,-150.0,0.00017973,2]
[401150250,1767978642125,-500.0,0.00017973,2]
[401150251,1767978642134,-500.0,0.00017973,2]
[401150252,1767978642143,-500.0,0.00017973,2]
[401150253,1767978642152,-500.0,0.00017973,2]
[401150254,1767978642162,-500.0,0.00017973,2]
[401150255,1767978642172,-195.06667749,0.00017973,2]
[401150256,1767978642180,-515.27642925,0.00017973,2]
[401150257,1767978642190,-500.0,0.00017973,2]
[401150258,1767978642198,-168.53464326,0.00017973,2]
[401150259,1767978642207,-500.0,0.00017973,2]
[401150260,1767978642217,-500.0,0.00017973,2]
[401150261,1767978642226,-500.0,0.00017973,2]
[401150262,1767978642235,-500.0,0.00017973,2]
[401150264,1767978642244,-500.0,0.00017973,2]
[401150265,1767978642253,-279.31517583,0.00017973,2]
[401150266,1767978642262,-500.0,0.00017973,2]
[401150267,1767978642271,-500.0,0.00017973,2]
[401150268,1767978642281,-500.0,0.00017973,2]
[401150269,1767978642290,-500.0,0.00017973,2]
[401150270,1767978642300,-500.0,0.00017973,2]
[401150271,1767978642309,-500.0,0.00017973,2]
[401150272,1767978642318,-500.0,0.00017973,2]
[401150273,1767978642328,-500.0,0.00017973,2]
[401150274,1767978642337,-500.0,0.00017973,2]
[401150275,1767978642347,-609.94892981,0.00017973,2]
[401150276,1767978642356,-500.0,0.00017973,2]
[401150277,1767978642365,-500.0,0.00017973,2]
[401150278,1767978642374,-500.0,0.00017973,2]
[401150279,1767978642384,-500.0,0.00017973,2]
[401150280,1767978642394,-429.09119552,0.00017973,2]
[401150281,1767978642403,-578.02071049,0.00017973,2]
[401150282,1767978642413,-501.05787152,0.00017973,2]
[401150283,1767978642422,-500.0,0.00017973,2]
[401150284,1767978642431,-286.84842062,0.00017973,2]
[401150285,1767978642441,-500.0,0.00017973,2]
[401150286,1767978642450,-500.0,0.00017973,2]
[401150287,1767978642460,-500.0,0.00017973,2]
[401150288,1767978642708,-398.03125352,0.00017973,2]
[401150289,1767978642735,-554.86072459,0.00017973,2]
[401150290,1767978642745,-182.86859792,0.00017973,2]
[401150291,1767978642755,-500.0,0.00017973,2]
[401150292,1767978642765,-546.15438132,0.00017973,2]
[401150293,1767978642775,-500.0,0.00017973,2]
[401150294,1767978642784,-165.3256661,0.00017973,2]
[401150295,1767978642794,-500.0,0.00017973,2]
[401150296,1767978642803,-500.0,0.00017973,2]
[401150297,1767978642813,-500.0,0.00017973,2]
[401150298,1767978642823,-500.0,0.00017973,2]
[401150300,1767978642832,-500.0,0.00017973,2]
[401150302,1767978642842,-500.0,0.00017973,2]
[401150304,1767978642851,-500.0,0.00017973,2]
[401150306,1767978642861,-500.0,0.00017973,2]
[401150308,1767978642870,-500.0,0.00017973,2]
[401150309,1767978642880,-500.0,0.00017973,2]
[401150310,1767978642889,-500.0,0.00017973,2]
[401150311,1767978642899,-500.0,0.00017973,2]
[401150312,1767978642908,-500.0,0.00017973,2]
[401150313,1767978642918,-500.0,0.00017973,2]
[401150314,1767978642927,-208.06887662,0.00017973,2]
[401150315,1767978642937,-500.0,0.00017973,2]
[401150316,1767978642946,-500.0,0.00017973,2]
[401150317,1767978642955,-500.0,0.00017973,2]
[401150318,1767978642968,-150.0,0.00017973,2]
[401150319,1767978642977,-150.0,0.00017973,2]
[401150320,1767978642986,-500.0,0.00017982,2]
[401150321,1767978642996,-229.46594682,0.0001799,2]
[401150322,1767978643006,-229.46594682,0.0001799,2]
[401150323,1767978643015,-503.20312707,0.00017997,2]
[401150324,1767978643024,-150.0,0.00017999,2]
[401150325,1767978643034,-273.60393039,0.00017999,2]
[401150326,1767978643044,-300.0,0.00017999,2]
[401150327,1767978643053,-300.0,0.00017999,2]
[401150328,1767978643062,-666.0,0.00017999,2]
[401150329,1767978643071,-300.0,0.00017999,2]
[401150330,1767978643080,-300.0,0.00017999,2]
[401150331,1767978643091,-666.0,0.00017999,2]
[401150332,1767978643104,-300.0,0.00017999,2]
[401150333,1767978643113,-666.0,0.00017999,2]
[401150334,1767978643122,-150.0,0.00018,2]
[401150335,1767978643131,-413046.21925877,0.00018,2]
[401150336,1767978643141,-92740.72693003,0.00018,2]
[401150337,1767978643150,-500.0,0.00018,2]
[401150338,1767978643160,-500.0,0.00018,2]
[401150339,1767978643170,-500.0,0.00018,2]
[401150340,1767978643180,-500.0,0.00018,2]
[401150341,1767978643189,-500.0,0.00018,2]
[401150342,1767978643199,-500.0,0.00018,2]
[401150343,1767978643208,-500.0,0.00018,2]
[401150344,1767978643218,-500.0,0.00018,2]
[401150345,1767978643228,-500.0,0.00018,2]
[401150346,1767978643237,-161.6,0.00018,2]
[401150347,1767978643246,-1769059.71410151,0.00018,2]
[401150348,1767978643318,-150.0,0.00014665,2]
[401150349,1767978643327,-3239.19645253,0.00018,2]
[401150350,1767978643338,-690.77220067,0.00018,2]
[401150351,1767978643349,-2128.0323062,0.00018,2]
[401150352,1767978643360,-5143.92330625,0.00018,2]
[401150381,1767978644094,-203.60478808,0.0001472,2]
[401150382,1767978644106,-239.84585252,0.00014965,2]
[401150383,1767978644117,-1359.27,0.00014965,2]
[401150384,1767978644128,-383.00032591,0.00014965,2]
[401150385,1767978644139,-942.09516184,0.00014965,2]
[401150386,1767978644149,-151.75,0.00015342,2]
[401150387,1767978644158,-3927.63955899,0.00018,2]
[401150388,1767978644169,-824552.9999997,0.00018,2]
[401150389,1767978644246,-6553.0,0.00017168,2]
[401150390,1767978644256,-484404.75272402,0.00018,2]
[401150391,1767978644475,-319504.13970717,0.00018,2]
[401150392,1767978645337,-15583.10160851,0.00018,2]
[401150393,1767978645349,-13209.76184703,0.00018,2]
[401150394,1767978645391,-191187.00770691,0.00018,2]
[401150395,1767978645402,-59794.85756083,0.00018,2]
[401150396,1767978645414,-811.8872998,0.00018,2]
[401150397,1767978645448,-657.92929977,0.00018,2]
[401150398,1767978645460,-2612.77264086,0.00018,2]
[401150399,1767978645508,-379.12940536,0.00018,2]
[401150400,1767978645519,-5875.43839788,0.00018,2]
[401150401,1767978645611,-462.84989598,0.00018,2]
[401150404,1767978645623,-327.410967,0.00018,2]
[401150534,1767979831573,-1858.162075,0.00012185,2]
[401150535,1767979831583,-877.477925,0.00012185,2]
[401150537,1767979831666,-87.792075,0.00012185,2]
[401150538,1767979831676,-247.37048258,0.00012247,2]
[401150539,1767979831685,-1348.469,0.00012347,2]
[401150540,1767979831696,-247.37048256,0.00012373,2]
[401150541,1767979831706,-1200.0,0.00012497,2]
[401150542,1767979831715,-1865.35574838,0.00012499,2]
[401150543,1767979831724,-247.37048256,0.00012499,2]
[401150544,1767979831734,-279.55894598,0.00012499,2]
[401150545,1767979831743,-275.78204315,0.00012598,2]
[401150546,1767979831753,-1000.0,0.00012599,2]
[401150547,1767979831764,-1865.35574833,0.00013099,2]
[401150548,1767979831773,-250.0,0.00013404,2]
[401150549,1767979831782,-300.0,0.00013472,2]
[401150550,1767979831792,-3189.89,0.000136,2]
[401150551,1767979831801,-150.0,0.00013697,2]